fUSD/lending_fUSD_20240429
["ID","MTS","AMOUNT","RATE_DAILY","PERIOD"]
[324863377,1714380642925,-501.41321763,0.00012373,2]
[324863378,1714380642935,-500.0,0.00012373,2]
[324863379,1714380642946,-500.0,0.00012373,2]
[324863380,1714380642957,-500.0,0.00012373,2]
[324863381,1714380642969,-291.13990711,0.00012373,2]
[324863382,1714380642980,-502.81744494,0.00012373,2]
[324863383,1714380642990,-500.0,0.00012373,2]
[324863384,1714380643001,-500.0,0.00012373,2]
[324863385,1714380643011,-500.0,0.00012373,2]
[324863386,1714380643021,-500.0,0.00012373,2]
[324863387,1714380643032,-500.0,0.00012373,2]
[324863388,1714380643043,-500.0,0.00012373,2]
[324863389,1714380643053,-500.0,0.00012373,2]
[324863390,1714380643063,-500.0,0.00012373,2]
[324863391,1714380643074,-500.0,0.00012373,2]
[324863392,1714380643084,-500.0,0.00012373,2]
[324863393,1714380643095,-500.0,0.00012373,2]
[324863394,1714380643106,-500.0,0.00012373,2]
[324863395,1714380643116,-500.0,0.00012373,2]
[324863396,1714380643126,-500.0,0.00012373,2]
[324863397,1714380643137,-500.0,0.00012373,2]
[324863398,1714380643147,-500.0,0.00012373,2]
[324863399,1714380643158,-500.0,0.00012373,2]
[324863400,1714380643169,-520.66267846,0.00012373,2]
[324863401,1714380643179,-500.0,0.00012373,2]
[324863402,1714380643190,-500.95144381,0.00012373,2]
[324863403,1714380643200,-500.0,0.00012373,2]
[324863404,1714380643211,-506.76638898,0.00012373,2]
[324863405,1714380643222,-500.0,0.00012373,2]
[324863407,1714380643234,-556.41772285,0.00012373,2]
[324863409,1714380643249,-500.0,0.00012373,2]
[324863411,1714380643259,-500.0,0.00012373,2]
[324863414,1714380643270,-500.0,0.00012373,2]
[324863415,1714380643281,-500.0,0.00012373,2]
[324863418,1714380643292,-500.0,0.00012373,2]
[324863419,1714380643302,-500.0,0.00012373,2]
[324863420,1714380643312,-500.0,0.00012373,2]
[324863421,1714380643323,-500.0,0.00012373,2]
[324863422,1714380643334,-500.0,0.00012373,2]
[324863425,1714380643344,-500.0,0.00012373,2]
[324863427,1714380643355,-220.74851532,0.00012373,2]
[324863429,1714380643366,-500.0,0.00012373,2]
[324863431,1714380643376,-500.0,0.00012373,2]
[324863433,1714380643387,-389.88,0.00012373,2]
[324863435,1714380643398,-505.99671944,0.00012373,2]
[324863436,1714380643409,-500.0,0.00012373,2]
[324863437,1714380643419,-500.0,0.00012373,2]
[324863438,1714380643430,-500.0,0.00012373,2]
[324863439,1714380643440,-500.0,0.00012373,2]
[324863440,1714380643451,-500.0,0.00012373,2]
[324863441,1714380643462,-500.0,0.00012373,2]
[324863442,1714380643473,-502.71239171,0.00012373,2]
[324863443,1714380643483,-500.0,0.00012373,2]
[324863444,1714380643494,-500.0,0.00012373,2]
[324863445,1714380643505,-500.0,0.00012373,2]
[324863446,1714380643516,-500.0,0.00012373,2]
[324863447,1714380643526,-500.0,0.00012373,2]
[324863448,1714380643537,-500.0,0.00012373,2]
[324863449,1714380643548,-500.0,0.00012373,2]
[324863450,1714380643558,-500.0,0.00012373,2]
[324863451,1714380643569,-159.34192956,0.00012373,2]
[324863452,1714380643580,-500.0,0.00012373,2]
[324863453,1714380643590,-500.0,0.00012373,2]
[324863454,1714380643601,-500.0,0.00012373,2]
[324863455,1714380643611,-588.35,0.00012373,2]
[324863456,1714380643622,-500.0,0.00012373,2]
[324863457,1714380643632,-501.57662709,0.00012373,2]
[324863458,1714380643642,-1311.31,0.00012373,2]
[324863459,1714380643653,-500.0,0.00012373,2]
[324863460,1714380643664,-500.0,0.00012373,2]
[324863461,1714380643675,-500.0,0.00012373,2]
[324863462,1714380643686,-500.0,0.00012373,2]
[324863463,1714380643697,-500.0,0.00012373,2]
[324863464,1714380643707,-500.0,0.00012373,2]
[324863465,1714380643719,-500.0,0.00012373,2]
[324863466,1714380643729,-500.0,0.00012373,2]
[324863467,1714380643740,-500.0,0.00012373,2]
[324863468,1714380643750,-500.0,0.00012373,2]
[324863469,1714380643760,-500.0,0.00012373,2]
[324863473,1714380643771,-255.01,0.00012373,2]
[324863474,1714380644029,-500.0,0.00012373,2]
[324863475,1714380644041,-500.0,0.00012373,2]
[324863476,1714380644050,-500.0,0.00012373,2]
[324863477,1714380644060,-500.0,0.00012373,2]
[324863478,1714380644069,-500.0,0.00012373,2]
[324863479,1714380644079,-500.0,0.00012373,2]
[324863480,1714380644088,-515.03576389,0.00012373,2]
[324863481,1714380644097,-500.0,0.00012373,2]
[324863482,1714380644106,-571.96081613,0.00012373,2]
[324863483,1714380644115,-500.0,0.00012373,2]
[324863484,1714380644124,-513.65,0.00012373,2]
[324863485,1714380644134,-514.99536315,0.00012373,2]
[324863486,1714380644143,-500.0,0.00012373,2]
[324863487,1714380644152,-500.0,0.00012373,2]
[324863488,1714380644161,-500.0,0.00012373,2]
[324863489,1714380644170,-500.0,0.00012373,2]
[324863490,1714380644179,-500.0,0.00012373,2]
[324863491,1714380644189,-500.0,0.00012373,2]
[324863492,1714380644198,-500.0,0.00012373,2]
[324863493,1714380644207,-505.11494814,0.00012373,2]
[324863494,1714380644219,-500.0,0.00012373,2]
[324863495,1714380644229,-500.0,0.00012373,2]
[324863496,1714380644241,-500.0,0.00012373,2]
[324863497,1714380644250,-500.0,0.00012373,2]
[324863498,1714380644259,-500.0,0.00012373,2]
[324863499,1714380644268,-500.0,0.00012373,2]
[324863500,1714380644279,-505.54443567,0.00012373,2]
[324863501,1714380644289,-500.0,0.00012373,2]
[324863502,1714380644299,-154.13,0.00012373,2]
[324863503,1714380644308,-500.0,0.00012373,2]
[324863504,1714380644320,-500.0,0.00012373,2]
[324863505,1714380644329,-500.0,0.00012373,2]
[324863506,1714380644338,-500.0,0.00012373,2]
[324863507,1714380644347,-500.0,0.00012373,2]
[324863508,1714380644357,-500.0,0.00012373,2]
[324863509,1714380644366,-905.99,0.00012373,2]
[324863510,1714380644375,-500.0,0.00012373,2]
[324863511,1714380644385,-500.0,0.00012373,2]
[324863512,1714380644394,-500.0,0.00012373,2]
[324863513,1714380644404,-743.99,0.00012373,2]
[324863514,1714380644413,-500.0,0.00012373,2]
[324863515,1714380644424,-518.23590048,0.00012373,2]
[324863516,1714380644433,-507.36608894,0.00012373,2]
[324863517,1714380644442,-500.0,0.00012373,2]
[324863518,1714380644451,-501.23893517,0.00012373,2]
[324863519,1714380644462,-500.0,0.00012373,2]
[324863520,1714380644471,-500.0,0.00012373,2]
[324863521,1714380644481,-1242.61,0.00012373,2]
[324863522,1714380644490,-586.56,0.00012373,2]
[324863523,1714380644500,-500.0,0.00012373,2]
[324863524,1714380644509,-500.0,0.00012373,2]
[324863525,1714380644519,-500.0,0.00012373,2]
[324863526,1714380644528,-500.0,0.00012373,2]
[324863527,1714380644537,-500.0,0.00012373,2]
[324863528,1714380644546,-500.0,0.00012373,2]
[324863529,1714380644555,-500.0,0.00012373,2]
[324863530,1714380644564,-500.0,0.00012373,2]
[324863531,1714380644574,-500.0,0.00012373,2]
[324863532,1714380644583,-504.83850367,0.00012374,2]
[324863533,1714380644592,-500.0,0.00012374,2]
[324863534,1714380644601,-513.58362604,0.00012374,2]
[324863535,1714380644610,-500.0,0.00012374,2]
[324863536,1714380644619,-150.77542682,0.00012374,2]
[324863537,1714380644628,-500.0,0.00012374,2]
[324863538,1714380644637,-3400.0,0.000124,4]
[324863539,1714380644647,-1000.0,0.000125,2]
[324863540,1714380644656,-4300.0,0.000125,4]
[324863541,1714380644665,-253.97259115,0.0001256,2]
[324863542,1714380644675,-152.0,0.00012563,4]
[324863543,1714380644684,-500.0,0.00012569,2]
[324863544,1714380644693,-500.0,0.00012569,2]
[324863545,1714380644702,-500.0,0.0001257,2]
[324863546,1714380644712,-253.97259115,0.00012573,2]
[324863547,1714380644721,-500.0,0.00012577,2]
[324863548,1714380644730,-500.0,0.00012577,2]
[324863549,1714380644739,-500.0,0.00012577,2]
[324863550,1714380644749,-500.0,0.00012577,2]
[324863551,1714380644759,-500.0,0.00012577,2]
[324863552,1714380644769,-500.0,0.00012577,2]
[324863553,1714380644779,-500.0,0.00012577,2]
[324863554,1714380644788,-500.0,0.00012577,2]
[324863555,1714380644797,-500.0,0.00012577,2]
[324863556,1714380644806,-571.2,0.00012577,2]
[324863557,1714380644815,-500.0,0.00012577,2]
[324863558,1714380644824,-500.0,0.00012577,2]
[324863559,1714380644833,-500.0,0.00012577,2]
[324863560,1714380644842,-500.0,0.00012577,2]
[324863561,1714380644852,-500.0,0.00012577,2]
[324863562,1714380644861,-500.0,0.00012577,2]
[324863563,1714380644871,-500.0,0.00012577,2]
[324863564,1714380644881,-500.0,0.00012577,2]
[324863565,1714380644890,-500.0,0.00012577,2]
[324863566,1714380644899,-150.0,0.00012577,2]
[324863567,1714380644908,-500.0,0.00012577,2]
[324863568,1714380644917,-507.47177151,0.00012577,2]
[324863569,1714380644927,-500.0,0.00012577,2]
[324863570,1714380644936,-500.0,0.00012577,2]
[324863571,1714380644945,-500.0,0.00012577,2]
[324863572,1714380644954,-500.0,0.00012577,2]
[324863573,1714380644964,-500.0,0.00012577,2]
[324863574,1714380644973,-500.0,0.00012577,2]
[324863575,1714380644983,-500.0,0.00012577,2]
[324863576,1714380644991,-500.0,0.00012577,2]
[324863577,1714380645000,-500.0,0.00012577,2]
[324863578,1714380645010,-500.0,0.00012577,2]
[324863579,1714380645019,-500.0,0.00012577,2]
[324863580,1714380645028,-500.0,0.00012577,2]
[324863581,1714380645037,-500.0,0.00012577,2]
[324863582,1714380645047,-269.83749693,0.00012577,2]
[324863583,1714380645057,-500.0,0.00012577,2]
[324863584,1714380645066,-500.0,0.00012577,2]
[324863585,1714380645075,-500.0,0.00012577,2]
[324863586,1714380645084,-499.04854748,0.00012577,2]
[324863587,1714380645094,-500.0,0.00012577,2]
[324863588,1714380645102,-500.0,0.00012577,2]
[324863589,1714380645111,-500.0,0.00012577,2]
[324863590,1714380645120,-500.0,0.00012577,2]
[324863591,1714380645129,-500.0,0.00012577,2]
[324863592,1714380645139,-583.43764837,0.00012577,2]
[324863593,1714380645147,-153.02740691,0.00012577,2]
[324863594,1714380645156,-500.0,0.00012577,2]
[324863595,1714380645165,-500.0,0.00012577,2]
[324863596,1714380645175,-500.0,0.00012577,2]
[324863597,1714380645184,-500.0,0.00012577,2]
[324863598,1714380645193,-500.0,0.00012577,2]
[324863599,1714380645203,-500.0,0.00012577,2]
[324863600,1714380645212,-500.0,0.00012577,2]
[324863601,1714380645221,-500.0,0.00012577,2]
[324863602,1714380645233,-500.0,0.00012577,2]
[324863603,1714380645243,-500.0,0.00012577,2]
[324863604,1714380645252,-3428.59,0.00012577,2]
[324863605,1714380645261,-500.0,0.00012577,2]
[324863606,1714380645271,-500.0,0.00012577,2]
[324863607,1714380645280,-500.0,0.00012577,2]
[324863608,1714380645289,-500.0,0.00012577,2]
[324863609,1714380645298,-500.0,0.00012577,2]
[324863610,1714380645307,-500.0,0.00012577,2]
[324863611,1714380645316,-500.0,0.00012577,2]
[324863612,1714380645327,-500.0,0.00012577,2]
[324863613,1714380645336,-500.0,0.00012577,2]
[324863614,1714380645345,-641.49,0.00012577,2]
[324863615,1714380645355,-500.0,0.00012577,2]
[324863616,1714380645363,-511.31590185,0.00012577,2]
[324863617,1714380645373,-500.0,0.00012577,2]
[324863618,1714380645382,-500.0,0.00012577,2]
[324863619,1714380645391,-500.0,0.00012577,2]
[324863620,1714380645400,-500.0,0.00012577,2]
[324863621,1714380645409,-500.0,0.00012577,2]
[324863622,1714380645419,-500.0,0.00012577,2]
[324863623,1714380645428,-500.0,0.00012577,2]
[324863624,1714380645437,-500.0,0.00012577,2]
[324863625,1714380645446,-500.0,0.00012577,2]
[324863626,1714380645455,-642.77,0.00012577,2]
[324863627,1714380645465,-500.0,0.00012577,2]
[324863628,1714380645474,-500.0,0.00012577,2]
[324863629,1714380645483,-500.0,0.00012577,2]
[324863630,1714380645493,-500.0,0.00012577,2]
[324863631,1714380645502,-1430.2,0.00012577,2]
[324863632,1714380645512,-500.0,0.00012577,2]
[324863633,1714380645521,-500.0,0.00012577,2]
[324863634,1714380645530,-257.68,0.00012577,2]
[324863635,1714380645539,-500.0,0.00012577,2]
[324863636,1714380645549,-500.0,0.00012577,2]
[324863637,1714380645558,-500.0,0.00012577,2]
[324863638,1714380645567,-500.0,0.00012577,2]
[324863639,1714380645577,-500.0,0.00012577,2]
[324863640,1714380645586,-647.12,0.00012577,2]
[324863641,1714380645595,-500.0,0.00012577,2]
[324863642,1714380645604,-500.0,0.00012577,2]
[324863643,1714380645613,-500.0,0.00012577,2]
[324863644,1714380645622,-500.0,0.00012577,2]
[324863645,1714380645631,-500.0,0.00012577,2]
[324863646,1714380645640,-1048.46,0.00012577,2]
[324863647,1714380645651,-500.0,0.00012577,2]
[324863648,1714380645660,-500.0,0.00012577,2]
[324863649,1714380645669,-500.0,0.00012577,2]
[324863650,1714380645678,-500.0,0.00012577,2]
[324863651,1714380645688,-500.0,0.00012577,2]
[324863652,1714380645697,-581.26154479,0.00012577,2]
[324863653,1714380645706,-500.0,0.00012577,2]
[324863654,1714380645716,-520.79,0.00012577,2]
[324863655,1714380645726,-600.71183581,0.00012577,2]
[324863656,1714380645735,-500.0,0.00012577,2]
[324863657,1714380645744,-500.0,0.00012577,2]
[324863658,1714380645753,-502.96433502,0.00012577,2]
[324863659,1714380645761,-500.0,0.00012577,2]
[324863660,1714380645771,-500.0,0.00012577,2]
[324863661,1714380645781,-500.0,0.00012577,2]
[324863662,1714380645790,-500.0,0.00012577,2]
[324863663,1714380645799,-500.0,0.00012577,2]
[324863664,1714380645808,-1273.13,0.00012577,2]
[324863665,1714380645818,-500.0,0.00012577,2]
[324863666,1714380645827,-500.0,0.00012577,2]
[324863667,1714380645835,-8561.59,0.00012577,2]
[324863668,1714380645844,-500.0,0.00012578,2]
[324863669,1714380645853,-500.0,0.00012578,2]
[324863670,1714380645862,-1604.1,0.00012578,2]
[324863671,1714380645871,-500.0,0.00012578,2]
[324863672,1714380645880,-500.0,0.00012578,2]
[324863673,1714380645889,-500.0,0.00012578,2]
[324863674,1714380645898,-500.0,0.00012578,2]
[324863675,1714380645908,-500.0,0.00012579,2]
[324863676,1714380645917,-500.0,0.00012579,2]
[324863677,1714380645927,-500.0,0.00012579,2]
[324863678,1714380645936,-586.03321941,0.00012579,2]
[324863679,1714380645945,-546.63,0.00012579,2]
[324863680,1714380645954,-1173.46765146,0.0001258,2]
[324863681,1714380645963,-253.97259115,0.00012585,2]
[324863682,1714380645973,-1000.0,0.00012597,2]
[324863683,1714380645982,-500.0,0.00012597,2]
[324863684,1714380645992,-1000.0,0.00012598,2]
[324863685,1714380646001,-253.97259115,0.00012598,2]
[324863686,1714380646011,-172.4746835,0.00012598,2]
[324863687,1714380646020,-1562.3002278,0.00012598,2]
[324863688,1714380646030,-209.3939524,0.00012598,2]
[324863689,1714380646039,-1000.0,0.00012598,2]
[324863690,1714380646048,-1000.0,0.00012598,2]
[324863691,1714380646058,-500.0,0.00012598,2]
[324863692,1714380646068,-500.0,0.00012598,2]
[324863693,1714380646079,-978.24513972,0.000126,2]
[324863694,1714380646361,-1349.90711029,0.000126,2]
[324863695,1714380646577,-500.0,0.00012372,2]
[324863696,1714380646586,-12313.4,0.000126,2]
[324863697,1714380646598,-13439.33723775,0.000126,2]
[324863698,1714380646613,-496.62551847,0.000126,2]
[324863699,1714380646629,-1422.48499377,0.000126,2]
[324863700,1714380646638,-497.0,0.000126,5]
[324863701,1714380646648,-800.0,0.000126,4]
[324863703,1714380646657,-151.16530656,0.000126,2]
[324863705,1714380646666,-619.90381488,0.000126,2]
[324863707,1714380646675,-212.21969678,0.000126,2]
[324863709,1714380646685,-600.0,0.00012602,2]
[324863711,1714380646695,-1456.257719,0.00012625,2]
[324863712,1714380646706,-106.0425088,0.00012625,2]
[324863713,1714380646716,-151.63499927,0.00012637,2]
[324863714,1714380646847,-500.0,0.00012646,2]
[324863715,1714380646888,-582.33070212,0.00012646,2]
[324863716,1714380646898,-500.0,0.00012646,2]
[324863717,1714380646907,-500.0,0.00012646,2]
[324863718,1714380646917,-500.0,0.00012646,2]
[324863719,1714380646926,-500.0,0.00012646,2]
[324863720,1714380646935,-500.0,0.00012646,2]
[324863721,1714380646944,-215.81714933,0.00012646,2]
[324863722,1714380646956,-89.84183839,0.00012646,2]
[324863723,1714380646966,-500.0,0.00012646,2]
[324863724,1714380646975,-287.08357067,0.00012646,2]
[324863725,1714380647095,-212.91642933,0.00012646,2]
[324863726,1714380647104,-500.0,0.00012646,2]
[324863727,1714380647114,-248.14857067,0.00012646,2]
[324863728,1714380647310,-500.0,0.00012372,2]
[324863729,1714380647322,-500.0,0.00012372,2]
[324863730,1714380647332,-508.64721972,0.00012372,2]
[324863731,1714380647342,-251.85142933,0.00012646,2]
[324863732,1714380647351,-500.0,0.00012646,2]
[324863733,1714380647362,-500.0,0.00012646,2]
[324863734,1714380647371,-500.0,0.00012646,2]
[324863735,1714380647380,-500.0,0.00012646,2]
[324863736,1714380647390,-269.48011628,0.00012646,2]
[324863737,1714380647399,-471.7735078,0.00012646,2]
[324863738,1714380647409,-500.0,0.00012646,2]
[324863739,1714380647418,-500.0,0.00012646,2]
[324863740,1714380647427,-585.78,0.00012646,2]
[324863741,1714380647436,-500.0,0.00012646,2]
[324863742,1714380647446,-451.38626451,0.00012646,2]
[324863743,1714380647455,-500.0,0.00012646,2]
[324863744,1714380647465,-500.0,0.00012646,2]
[324863745,1714380647474,-280.20504903,0.00012646,2]
[324863746,1714380647484,-866.11,0.00012646,2]
[324863747,1714380647493,-632.5,0.00012646,2]
[324863748,1714380647501,-500.0,0.00012646,2]
[324863749,1714380647510,-500.0,0.00012646,2]
[324863750,1714380647519,-500.0,0.00012646,2]
[324863751,1714380647528,-500.0,0.00012646,2]
[324863752,1714380647538,-500.0,0.00012646,2]
[324863753,1714380647547,-500.0,0.00012646,2]
[324863754,1714380647556,-500.0,0.00012646,2]
[324863755,1714380647565,-500.0,0.00012646,2]
[324863756,1714380647574,-517.0,0.00012646,2]
[324863757,1714380647584,-500.0,0.00012646,2]
[324863758,1714380647593,-500.0,0.00012646,2]
[324863759,1714380647603,-500.0,0.00012646,2]
[324863760,1714380647612,-346.74,0.00012646,2]
[324863761,1714380647621,-500.0,0.00012646,2]
[324863762,1714380647631,-500.0,0.00012646,2]
[324863763,1714380647641,-500.0,0.00012646,2]
[324863764,1714380647650,-500.0,0.00012646,2]
[324863765,1714380647660,-500.0,0.00012646,2]
[324863766,1714380647670,-192.15901988,0.00012646,2]
[324863767,1714380647682,-305.552031,0.00012646,2]
[324863768,1714380647724,-140.40894912,0.00012646,2]
[324863769,1714380647733,-500.0,0.00012646,2]
[324863770,1714380647741,-177.44038634,0.00012646,2]
[324863771,1714380647750,-500.0,0.00012646,2]
[324863772,1714380647759,-500.0,0.00012646,2]
[324863773,1714380647769,-1314.07,0.00012646,2]
[324863774,1714380647778,-500.0,0.00012646,2]
[324863775,1714380647787,-781.24,0.00012646,2]
[324863776,1714380647797,-500.0,0.00012646,2]
[324863777,1714380647806,-500.0,0.00012646,2]
[324863778,1714380647816,-1235.95,0.00012646,2]
[324863779,1714380647825,-535.65445673,0.00012646,2]
[324863780,1714380647834,-1162.27,0.00012646,2]
[324863781,1714380647844,-1044.98,0.00012646,2]
[324863782,1714380647853,-1178.02,0.00012646,2]
[324863783,1714380647862,-500.0,0.00012646,2]
[324863784,1714380647871,-2176.74,0.00012646,2]
[324863785,1714380647880,-500.0,0.00012646,2]
[324863786,1714380647890,-500.0,0.00012646,2]
[324863787,1714380647899,-500.0,0.00012646,2]
[324863788,1714380647908,-500.0,0.00012646,2]
[324863789,1714380647917,-500.0,0.00012646,2]
[324863790,1714380647927,-500.0,0.00012646,2]
[324863791,1714380647936,-500.0,0.00012646,2]
[324863792,1714380647945,-500.0,0.00012646,2]
[324863793,1714380647954,-500.0,0.00012646,2]
[324863794,1714380647964,-1223.63,0.00012646,2]
[324863795,1714380647973,-1485.79,0.00012646,2]
[324863796,1714380647982,-507.38930438,0.00012646,2]
[324863797,1714380647991,-500.0,0.00012646,2]
[324863798,1714380648000,-691.77,0.00012646,2]
[324863799,1714380648009,-500.0,0.00012646,2]
[324863800,1714380648019,-615.0,0.00012646,2]
[324863801,1714380648027,-500.0,0.00012646,2]
[324863802,1714380648037,-624.64851218,0.00012646,2]
[324863803,1714380648046,-500.0,0.00012646,2]
[324863804,1714380648055,-682.7,0.00012646,2]
[324863805,1714380648065,-500.0,0.00012646,2]
[324863806,1714380648074,-536.87,0.00012646,2]
[324863807,1714380648084,-7541.54,0.00012646,2]
[324863808,1714380648093,-607.96,0.00012646,2]
[324863809,1714380648102,-500.0,0.00012646,2]
[324863810,1714380648112,-300.38434158,0.00012646,2]
[324863811,1714380648121,-500.0,0.00012646,2]
[324863812,1714380648131,-500.0,0.00012646,2]
[324863813,1714380648140,-507.23532519,0.00012646,2]
[324863814,1714380648148,-500.0,0.00012646,2]
[324863815,1714380648158,-828.99,0.00012646,2]
[324863816,1714380648167,-434.7,0.00012646,2]
[324863817,1714380648176,-2530.14,0.00012646,2]
[324863818,1714380648186,-500.0,0.00012646,2]
[324863819,1714380648195,-1321.5,0.00012646,2]
[324863820,1714380648205,-500.0,0.00012646,2]
[324863821,1714380648216,-1125.59,0.00012646,2]
[324863822,1714380648225,-500.0,0.00012646,2]
[324863823,1714380648238,-500.0,0.00012646,2]
[324863824,1714380648248,-443.47,0.00012646,2]
[324863825,1714380648257,-500.0,0.00012646,2]
[324863826,1714380648266,-500.0,0.00012646,2]
[324863827,1714380648276,-500.0,0.00012646,2]
[324863828,1714380648286,-500.0,0.00012646,2]
[324863829,1714380648295,-500.0,0.00012646,2]
[324863830,1714380648304,-500.0,0.00012646,2]
[324863831,1714380648314,-500.0,0.00012646,2]
[324863832,1714380648324,-500.0,0.00012646,2]
[324863833,1714380648334,-500.0,0.00012646,2]
[324863834,1714380648342,-500.0,0.00012646,2]
[324863835,1714380648351,-6527.6,0.00012646,2]
[324863836,1714380648361,-500.0,0.00012646,2]
[324863837,1714380648370,-606.69,0.00012646,2]
[324863838,1714380648379,-500.0,0.00012646,2]
[324863839,1714380648388,-500.0,0.00012646,2]
[324863840,1714380648397,-500.0,0.00012646,2]
[324863841,1714380648407,-500.0,0.00012646,2]
[324863842,1714380648416,-500.0,0.00012646,2]
[324863843,1714380648426,-500.0,0.00012646,2]
[324863844,1714380648435,-500.0,0.00012646,2]
[324863845,1714380648444,-500.0,0.00012646,2]
[324863846,1714380648453,-500.0,0.00012646,2]
[324863847,1714380648463,-500.0,0.00012646,2]
[324863848,1714380648471,-500.0,0.00012646,2]
[324863849,1714380648480,-1354.66,0.00012646,2]
[324863850,1714380648490,-500.0,0.00012646,2]
[324863851,1714380648499,-500.0,0.00012646,2]
[324863852,1714380648509,-718.6,0.00012646,2]
[324863853,1714380648518,-500.0,0.00012646,2]
[324863854,1714380648528,-500.0,0.00012646,2]
[324863855,1714380648537,-500.0,0.00012646,2]
[324863856,1714380648546,-500.0,0.00012646,2]
[324863857,1714380648554,-500.0,0.00012646,2]
[324863858,1714380648564,-500.0,0.00012646,2]
[324863859,1714380648573,-500.0,0.00012646,2]
[324863860,1714380648583,-8479.42,0.00012646,2]
[324863861,1714380648592,-262.64,0.00012646,2]
[324863862,1714380648601,-500.0,0.00012647,2]
[324863863,1714380648611,-515.14,0.00012647,2]
[324863864,1714380648620,-500.0,0.00012647,2]
[324863865,1714380648629,-537.89104314,0.00012647,2]
[324863866,1714380648638,-500.0,0.00012647,2]
[324863867,1714380648647,-500.0,0.00012647,2]
[324863868,1714380648657,-500.0,0.00012647,2]
[324863869,1714380648666,-405.49,0.00012647,2]
[324863870,1714380648676,-500.0,0.00012647,2]
[324863871,1714380648685,-500.0,0.00012647,2]
[324863872,1714380648695,-348.51,0.00012647,2]
[324863873,1714380648705,-500.0,0.00012647,2]
[324863874,1714380648716,-163.66,0.00012647,2]
[324863875,1714380648726,-500.0,0.00012647,2]
[324863876,1714380648735,-1947.68,0.00012647,2]
[324863877,1714380648745,-370.55888139,0.00012647,2]
[324863878,1714380648755,-500.0,0.00012647,2]
[324863879,1714380648765,-234.94260701,0.00012647,2]
[324863880,1714380648774,-271.84355214,0.00012647,2]
[324863881,1714380648784,-500.0,0.00012647,2]
[324863882,1714380648793,-500.0,0.00012647,2]
[324863883,1714380648802,-500.0,0.00012647,2]
[324863884,1714380648812,-346.52044996,0.00012647,2]
[324863885,1714380648822,-749.63,0.00012647,2]
[324863886,1714380648831,-500.0,0.00012647,2]
[324863887,1714380648839,-500.0,0.00012647,2]
[324863888,1714380648848,-500.0,0.00012647,2]
[324863889,1714380648857,-606.2,0.00012647,2]
[324863890,1714380648866,-379.58005819,0.00012647,2]
[324863891,1714380648875,-500.0,0.00012647,2]
[324863892,1714380648884,-500.0,0.00012647,2]
[324863893,1714380648893,-419.87999595,0.00012647,2]
[324863894,1714380648902,-500.0,0.00012647,2]
[324863895,1714380648912,-500.0,0.00012647,2]
[324863896,1714380648922,-627.86,0.00012647,2]
[324863897,1714380648931,-501.35499037,0.00012647,2]
[324863898,1714380648940,-500.0,0.00012647,2]